[Event "Titled Tuesday Blitz June 28 Early 2022"]
[White "Daneshvar, Bardiya"]
[Black "Narayanan.S.L"]
[WhiteFideId "12576468"]
[BlackFideId "5058422"]
[WhiteElo "2303"]
[BlackElo "2494"]
[Result "0-1"]
[Round "07"]
[TimeControl "180+1"]
[Date "2022.06.28"]
[WhiteClock "0:00:05"]
[BlackClock "0:00:16"]

1. Nf3 {[%clk 0:03:00]}  Nc6 {[%clk 0:02:56]} 2. d4 {[%clk 0:02:59]}  d5 {[%clk 0:02:57]} 3. c4 {[%clk 0:02:59]}  e5 {[%clk 0:02:57]} 4. cxd5 {[%clk 0:02:37]}  Qxd5 {[%clk 0:02:54]} 5. Nc3 {[%clk 0:02:37]}  Bb4 {[%clk 0:02:54]} 6. a3 {[%clk 0:02:15]}  Bxc3+ {[%clk 0:02:52]} 7. bxc3 {[%clk 0:02:15]}  e4 {[%clk 0:02:52]} 8. Ng1 {[%clk 0:02:12]}  Nf6 {[%clk 0:02:46]} 9. e3 {[%clk 0:02:12]}  O-O {[%clk 0:02:46]} 10. c4 {[%clk 0:02:12]}  Qg5 {[%clk 0:02:46]} 11. Rb1 {[%clk 0:02:06]}  a6 {[%clk 0:02:43]} 12. h4 {[%clk 0:02:02]}  Qg6 {[%clk 0:02:41]} 13. h5 {[%clk 0:02:01]}  Qh6 {[%clk 0:02:41]} 14. Be2 {[%clk 0:01:47]}  Rd8 {[%clk 0:02:38]} 15. Qc2 {[%clk 0:01:40]}  b6 {[%clk 0:02:36]} 16. Qc3 {[%clk 0:01:39]}  Qg5 {[%clk 0:02:25]} 17. Kf1 {[%clk 0:01:33]}  h6 {[%clk 0:02:26]} 18. Bb2 {[%clk 0:01:29]}  Bg4 {[%clk 0:02:24]} 19. d5 {[%clk 0:01:26]}  Na5 {[%clk 0:02:21]} 20. Bxg4 {[%clk 0:01:11]}  Nxg4 {[%clk 0:02:20]} 21. Nh3 {[%clk 0:01:07]}  Qf6 {[%clk 0:02:18]} 22. Qxa5 {[%clk 0:00:53]}  bxa5 {[%clk 0:01:31]} 23. Bxf6 {[%clk 0:00:52]}  Nxf6 {[%clk 0:01:32]} 24. Nf4 {[%clk 0:00:48]}  c6 {[%clk 0:01:29]} 25. dxc6 {[%clk 0:00:33]}  Rac8 {[%clk 0:01:30]} 26. Ke2 {[%clk 0:00:32]}  Rxc6 {[%clk 0:01:30]} 27. Rhc1 {[%clk 0:00:30]}  Rdc8 {[%clk 0:01:27]} 28. Kd2 {[%clk 0:00:22]}  Ng4 {[%clk 0:01:25]} 29. Nd5 {[%clk 0:00:20]}  Kf8 {[%clk 0:01:12]} 30. Nb6 {[%clk 0:00:20]}  Rd8+ {[%clk 0:01:11]} 31. Ke2 {[%clk 0:00:20]}  Ne5 {[%clk 0:01:11]} 32. Rc3 {[%clk 0:00:15]}  Rd3 {[%clk 0:01:07]} 33. Rc2 {[%clk 0:00:07]}  Rxa3 {[%clk 0:01:01]} 34. Nd5 {[%clk 0:00:08]}  Rc8 {[%clk 0:00:54]} 35. c5 {[%clk 0:00:08]}  Rd3 {[%clk 0:00:54]} 36. Nb6 {[%clk 0:00:07]}  Rc6 {[%clk 0:00:53]} 37. f4 {[%clk 0:00:07]}  Ng4 {[%clk 0:00:51]} 38. Nc4 {[%clk 0:00:07]}  Rxc5 {[%clk 0:00:49]} 39. Rb8+ {[%clk 0:00:07]}  Ke7 {[%clk 0:00:49]} 40. Rb7+ {[%clk 0:00:08]}  Rd7 {[%clk 0:00:34]} 41. Rxd7+ {[%clk 0:00:08]}  Kxd7 {[%clk 0:00:35]} 42. Ne5+ {[%clk 0:00:09]}  Kd6 {[%clk 0:00:36]} 43. Nxf7+ {[%clk 0:00:05]}  Kc6 {[%clk 0:00:36]} 44. Nd8+ {[%clk 0:00:04]}  Kb6 {[%clk 0:00:31]} 45. Rb2+ {[%clk 0:00:05]}  Rb5 {[%clk 0:00:31]} 46. Rc2 {[%clk 0:00:03]}  Rb3 {[%clk 0:00:32]} 47. Ne6 {[%clk 0:00:03]}  Rxe3+ {[%clk 0:00:31]} 48. Kd2 {[%clk 0:00:04]}  Rd3+ {[%clk 0:00:30]} 49. Ke2 {[%clk 0:00:04]}  Re3+ {[%clk 0:00:30]} 50. Kd2 {[%clk 0:00:05]}  Rg3 {[%clk 0:00:31]} 51. Kc1 {[%clk 0:00:04]}  Ne3 {[%clk 0:00:27]} 52. Re2 {[%clk 0:00:05]}  a4 {[%clk 0:00:24]} 53. Nxg7 {[%clk 0:00:03]}  a3 {[%clk 0:00:24]} 54. Ne6 {[%clk 0:00:03]}  Kc6 {[%clk 0:00:23]} 55. Nd4+ {[%clk 0:00:02]}  Kd5 {[%clk 0:00:23]} 56. Nc2 {[%clk 0:00:03]}  Nc4 {[%clk 0:00:23]} 57. Nb4+ {[%clk 0:00:02]}  Kc5 {[%clk 0:00:23]} 58. Nxa6+ {[%clk 0:00:03]}  Kb5 {[%clk 0:00:21]} 59. Nc7+ {[%clk 0:00:03]}  Ka4 {[%clk 0:00:19]} 60. Nd5 {[%clk 0:00:03]}  Rd3 {[%clk 0:00:18]} 61. Nf6 {[%clk 0:00:02]}  e3 {[%clk 0:00:17]} 62. Ne4 {[%clk 0:00:03]}  Rd4 {[%clk 0:00:15]} 63. Nc3+ {[%clk 0:00:03]}  Kb3 {[%clk 0:00:15]} 64. Na2 {[%clk 0:00:03]}  Rd2 {[%clk 0:00:15]} 65. Rxe3+ {[%clk 0:00:04]}  Nxe3 {[%clk 0:00:15]} 66. Kxd2 {[%clk 0:00:04]}  Kxa2 {[%clk 0:00:15]} 67. Kxe3 {[%clk 0:00:05]}  Kb3 {[%clk 0:00:16]} 0-1


[Site "https://www.chess.com"]

[Event "Titled Tuesday Blitz June 28 Early 2022"]
[White "Dankhazi, Andras"]
[Black "Coto Mederos, Michel"]
[WhiteFideId "714267"]
[BlackFideId "3508528"]
[WhiteElo "2325"]
[BlackElo "2427"]
[Result "1/2-1/2"]
[Round "07"]
[TimeControl "180+1"]
[Date "2022.06.28"]
[WhiteClock "0:00:23"]
[BlackClock "0:00:21"]

1. e4 {[%clk 0:03:00]}  e5 {[%clk 0:02:56]} 2. Nc3 {[%clk 0:02:56]}  Nf6 {[%clk 0:02:56]} 3. d4 {[%clk 0:02:57]}  exd4 {[%clk 0:02:50]} 4. Qxd4 {[%clk 0:02:58]}  Nc6 {[%clk 0:02:49]} 5. Qd2 {[%clk 0:02:58]}  Bb4 {[%clk 0:02:47]} 6. Bd3 {[%clk 0:02:54]}  d5 {[%clk 0:02:36]} 7. exd5 {[%clk 0:02:53]}  Nxd5 {[%clk 0:02:35]} 8. Nge2 {[%clk 0:02:53]}  O-O {[%clk 0:02:17]} 9. O-O {[%clk 0:02:49]}  Nxc3 {[%clk 0:02:17]} 10. Nxc3 {[%clk 0:02:50]}  Be6 {[%clk 0:02:10]} 11. Qg5 {[%clk 0:02:45]}  Bxc3 {[%clk 0:01:54]} 12. bxc3 {[%clk 0:02:38]}  h6 {[%clk 0:01:47]} 13. Qg3 {[%clk 0:02:35]}  Kh8 {[%clk 0:01:45]} 14. Bf4 {[%clk 0:02:35]}  Qf6 {[%clk 0:01:33]} 15. Be4 {[%clk 0:02:17]}  Rac8 {[%clk 0:01:09]} 16. Bxc7 {[%clk 0:02:11]}  Bf5 {[%clk 0:01:02]} 17. Bxc6 {[%clk 0:02:00]}  Qxc6 {[%clk 0:00:56]} 18. Be5 {[%clk 0:01:59]}  f6 {[%clk 0:00:56]} 19. Bd4 {[%clk 0:01:56]}  Bxc2 {[%clk 0:00:54]} 20. Rfe1 {[%clk 0:01:35]}  Rfe8 {[%clk 0:00:47]} 21. h4 {[%clk 0:01:20]}  Qc4 {[%clk 0:00:41]} 22. Bxa7 {[%clk 0:01:14]}  Rxe1+ {[%clk 0:00:38]} 23. Rxe1 {[%clk 0:01:15]}  Qxa2 {[%clk 0:00:37]} 24. Bd4 {[%clk 0:01:14]}  Qf7 {[%clk 0:00:28]} 25. Qe3 {[%clk 0:00:46]}  Ba4 {[%clk 0:00:25]} 26. Ra1 {[%clk 0:00:27]}  Bc6 {[%clk 0:00:23]} 27. Re1 {[%clk 0:00:24]}  Qg6 {[%clk 0:00:22]} 28. Qg3 {[%clk 0:00:23]}  Qxg3 {[%clk 0:00:20]} 29. fxg3 {[%clk 0:00:24]}  Re8 {[%clk 0:00:20]} 30. Rxe8+ {[%clk 0:00:25]}  Bxe8 {[%clk 0:00:21]} 31. Kf2 {[%clk 0:00:24]}  Bc6 {[%clk 0:00:19]} 32. Bc5 {[%clk 0:00:23]}  h5 {[%clk 0:00:19]} 33. Bf8 {[%clk 0:00:22]}  Kg8 {[%clk 0:00:18]} 34. Bb4 {[%clk 0:00:23]}  Kf7 {[%clk 0:00:19]} 35. Bc5 {[%clk 0:00:23]}  Ke6 {[%clk 0:00:19]} 36. Bb4 {[%clk 0:00:24]}  g6 {[%clk 0:00:19]} 37. Bc5 {[%clk 0:00:23]}  Kd5 {[%clk 0:00:19]} 38. Bb4 {[%clk 0:00:24]}  f5 {[%clk 0:00:19]} 39. Be7 {[%clk 0:00:23]}  Kc4 {[%clk 0:00:20]} 40. Bb4 {[%clk 0:00:24]}  Be4 {[%clk 0:00:19]} 41. Kf1 {[%clk 0:00:23]}  Kd3 {[%clk 0:00:20]} 42. Kf2 {[%clk 0:00:23]}  Kd2 {[%clk 0:00:21]} 43. Ba5 {[%clk 0:00:23]}  Kd3 {[%clk 0:00:20]} 44. Bb4 {[%clk 0:00:23]}  Kc4 {[%clk 0:00:19]} 45. Ba5 {[%clk 0:00:23]}  b5 {[%clk 0:00:19]} 46. Bb4 {[%clk 0:00:22]}  Kd3 {[%clk 0:00:18]} 47. Ba5 {[%clk 0:00:22]}  Kc4 {[%clk 0:00:19]} 48. Bb4 {[%clk 0:00:23]}  Kd3 {[%clk 0:00:20]} 49. Ba5 {[%clk 0:00:23]}  Kc4 {[%clk 0:00:21]} 1/2-1/2


[Site "https://www.chess.com"]

[Event "Titled Tuesday Blitz June 28 Early 2022"]
[White "Deac, Bogdan-Daniel"]
[Black "Beerdsen, Thomas"]
[WhiteFideId "1226380"]
[BlackFideId "1030108"]
[WhiteElo "2648"]
[BlackElo "2585"]
[Result "1-0"]
[Round "07"]
[TimeControl "180+1"]
[Date "2022.06.28"]
[WhiteClock "0:00:07"]
[BlackClock "0:00:33"]

1. d4 {[%clk 0:03:00]}  d5 {[%clk 0:02:59]} 2. Nf3 {[%clk 0:03:00]}  Nc6 {[%clk 0:02:59]} 3. Bf4 {[%clk 0:02:59]}  Bg4 {[%clk 0:02:57]} 4. e3 {[%clk 0:02:57]}  e6 {[%clk 0:02:57]} 5. c4 {[%clk 0:02:57]}  Nf6 {[%clk 0:02:57]} 6. Nc3 {[%clk 0:02:55]}  Bb4 {[%clk 0:02:56]} 7. Rc1 {[%clk 0:02:53]}  O-O {[%clk 0:02:56]} 8. Be2 {[%clk 0:02:50]}  dxc4 {[%clk 0:02:56]} 9. Bxc4 {[%clk 0:02:49]}  Nd5 {[%clk 0:02:56]} 10. Bg3 {[%clk 0:02:48]}  Na5 {[%clk 0:02:42]} 11. Be2 {[%clk 0:01:38]}  c5 {[%clk 0:02:35]} 12. Bh4 {[%clk 0:01:31]}  Qb6 {[%clk 0:02:28]} 13. O-O {[%clk 0:01:26]}  Bxf3 {[%clk 0:02:19]} 14. Bxf3 {[%clk 0:01:26]}  cxd4 {[%clk 0:02:17]} 15. Nxd5 {[%clk 0:01:18]}  exd5 {[%clk 0:02:18]} 16. Qxd4 {[%clk 0:01:17]}  Qxd4 {[%clk 0:02:17]} 17. exd4 {[%clk 0:01:18]}  Nc6 {[%clk 0:02:18]} 18. Rfd1 {[%clk 0:00:59]}  Rac8 {[%clk 0:02:13]} 19. Bxd5 {[%clk 0:00:45]}  Nxd4 {[%clk 0:02:10]} 20. Rxc8 {[%clk 0:00:44]}  Rxc8 {[%clk 0:02:10]} 21. Bxb7 {[%clk 0:00:44]}  Rc2 {[%clk 0:02:06]} 22. Kf1 {[%clk 0:00:40]}  Ne6 {[%clk 0:01:36]} 23. Rb1 {[%clk 0:00:39]}  g5 {[%clk 0:01:23]} 24. Bg3 {[%clk 0:00:37]}  h5 {[%clk 0:01:22]} 25. Be4 {[%clk 0:00:27]}  Rd2 {[%clk 0:01:21]} 26. f3 {[%clk 0:00:26]}  Nf4 {[%clk 0:01:16]} 27. Be1 {[%clk 0:00:20]}  Rd4 {[%clk 0:01:06]} 28. Bf2 {[%clk 0:00:13]}  Rd2 {[%clk 0:01:02]} 29. Be3 {[%clk 0:00:13]}  Rd7 {[%clk 0:00:58]} 30. h4 {[%clk 0:00:12]}  Bd2 {[%clk 0:00:52]} 31. Rd1 {[%clk 0:00:12]}  Bxe3 {[%clk 0:00:42]} 32. Rxd7 {[%clk 0:00:11]}  gxh4 {[%clk 0:00:43]} 33. Bd5 {[%clk 0:00:09]}  Kg7 {[%clk 0:00:39]} 34. Rxf7+ {[%clk 0:00:09]}  Kg6 {[%clk 0:00:40]} 35. Bc4 {[%clk 0:00:08]}  Kg5 {[%clk 0:00:37]} 36. Rg7+ {[%clk 0:00:07]}  Kf6 {[%clk 0:00:37]} 37. Rf7+ {[%clk 0:00:07]}  Ke5 {[%clk 0:00:38]} 38. Re7+ {[%clk 0:00:07]}  Kd4 {[%clk 0:00:33]} 39. Re4+ {[%clk 0:00:07]}  Kc5 {[%clk 0:00:33]} 40. Rxe3 {[%clk 0:00:07]}  h3 {[%clk 0:00:33]} 41. gxh3 {[%clk 0:00:07]} 1-0


[Site "https://www.chess.com"]

[Event "Titled Tuesday Blitz June 28 Early 2022"]
[White "Dixit, Arun"]
[Black "Karaev, Seit-Amet"]
[WhiteFideId "30937671"]
[BlackFideId "4169549"]
[WhiteElo "2398"]
[BlackElo "2272"]
[Result "0-1"]
[Round "07"]
[TimeControl "180+1"]
[Date "2022.06.28"]
[WhiteClock "0:00:20"]
[BlackClock "0:01:10"]

1. d4 {[%clk 0:03:00]}  Nf6 {[%clk 0:02:58]} 2. c4 {[%clk 0:02:59]}  c5 {[%clk 0:02:58]} 3. d5 {[%clk 0:02:58]}  b5 {[%clk 0:02:59]} 4. cxb5 {[%clk 0:02:58]}  a6 {[%clk 0:02:59]} 5. bxa6 {[%clk 0:02:45]}  Bxa6 {[%clk 0:03:00]} 6. Nc3 {[%clk 0:02:44]}  Qa5 {[%clk 0:03:00]} 7. Bd2 {[%clk 0:02:41]}  g6 {[%clk 0:03:00]} 8. e4 {[%clk 0:02:40]}  Bg7 {[%clk 0:02:56]} 9. Nf3 {[%clk 0:02:35]}  O-O {[%clk 0:02:54]} 10. Be2 {[%clk 0:02:32]}  Bxe2 {[%clk 0:02:53]} 11. Qxe2 {[%clk 0:02:31]}  Qa6 {[%clk 0:02:53]} 12. Qxa6 {[%clk 0:02:19]}  Nxa6 {[%clk 0:02:54]} 13. O-O {[%clk 0:02:19]}  d6 {[%clk 0:02:53]} 14. e5 {[%clk 0:02:14]}  Nd7 {[%clk 0:02:53]} 15. exd6 {[%clk 0:02:11]}  exd6 {[%clk 0:02:54]} 16. Ne4 {[%clk 0:02:02]}  Bxb2 {[%clk 0:02:26]} 17. Rab1 {[%clk 0:02:00]}  Be5 {[%clk 0:02:26]} 18. Nxe5 {[%clk 0:01:55]}  dxe5 {[%clk 0:02:27]} 19. Rb7 {[%clk 0:01:53]}  Nab8 {[%clk 0:02:24]} 20. Rfb1 {[%clk 0:01:33]}  Rxa2 {[%clk 0:02:22]} 21. Bh6 {[%clk 0:01:31]}  Rc8 {[%clk 0:02:06]} 22. Nd6 {[%clk 0:01:29]}  Rd8 {[%clk 0:02:03]} 23. Bg5 {[%clk 0:00:59]}  f6 {[%clk 0:02:02]} 24. Bxf6 {[%clk 0:00:59]}  Nxf6 {[%clk 0:01:58]} 25. Rxb8 {[%clk 0:00:59]}  Rxb8 {[%clk 0:01:58]} 26. Rxb8+ {[%clk 0:00:59]}  Kg7 {[%clk 0:01:59]} 27. Rb7+ {[%clk 0:00:50]}  Kh6 {[%clk 0:01:58]} 28. Nf7+ {[%clk 0:00:47]}  Kh5 {[%clk 0:01:57]} 29. h3 {[%clk 0:00:47]}  e4 {[%clk 0:01:53]} 30. g4+ {[%clk 0:00:43]}  Kh4 {[%clk 0:01:50]} 31. d6 {[%clk 0:00:33]}  Rd2 {[%clk 0:01:45]} 32. Ne5 {[%clk 0:00:22]}  Rxd6 {[%clk 0:01:33]} 33. Kg2 {[%clk 0:00:21]}  Rd2 {[%clk 0:01:29]} 34. Nc4 {[%clk 0:00:21]}  Rd7 {[%clk 0:01:17]} 35. Ne3 {[%clk 0:00:21]}  Rxb7 {[%clk 0:01:15]} 36. Kh2 {[%clk 0:00:21]}  Rb3 {[%clk 0:01:12]} 37. Ng2+ {[%clk 0:00:19]}  Kg5 {[%clk 0:01:10]} 38. h4+ {[%clk 0:00:20]} 0-1


[Site "https://www.chess.com"]

[Event "Titled Tuesday Blitz June 28 Early 2022"]
[White "Estrada Nieto, Julian"]
[Black "Schmakel, Sam"]
[WhiteFideId "5101018"]
[BlackFideId "2039311"]
[WhiteElo "2252"]
[BlackElo "2356"]
[Result "1-0"]
[Round "07"]
[TimeControl "180+1"]
[Date "2022.06.28"]
[WhiteClock "0:00:51"]
[BlackClock "0:00:15"]

1. e4 {[%clk 0:03:00]}  c5 {[%clk 0:02:33]} 2. Nf3 {[%clk 0:03:00]}  e6 {[%clk 0:02:33]} 3. c3 {[%clk 0:03:00]}  Nf6 {[%clk 0:02:31]} 4. e5 {[%clk 0:03:00]}  Nd5 {[%clk 0:02:32]} 5. Bc4 {[%clk 0:03:00]}  Nb6 {[%clk 0:02:15]} 6. Bb3 {[%clk 0:03:00]}  d6 {[%clk 0:02:12]} 7. d4 {[%clk 0:03:00]}  cxd4 {[%clk 0:02:03]} 8. cxd4 {[%clk 0:03:00]}  dxe5 {[%clk 0:02:03]} 9. Nxe5 {[%clk 0:03:00]}  N8d7 {[%clk 0:02:03]} 10. Nf3 {[%clk 0:02:59]}  Bd6 {[%clk 0:02:01]} 11. Nc3 {[%clk 0:02:56]}  Nf6 {[%clk 0:02:00]} 12. O-O {[%clk 0:02:56]}  O-O {[%clk 0:01:57]} 13. Bg5 {[%clk 0:02:55]}  h6 {[%clk 0:01:57]} 14. Bh4 {[%clk 0:02:55]}  Be7 {[%clk 0:01:57]} 15. Ne5 {[%clk 0:02:51]}  Bd7 {[%clk 0:01:57]} 16. Qf3 {[%clk 0:02:44]}  Bc6 {[%clk 0:01:45]} 17. Nxc6 {[%clk 0:02:42]}  bxc6 {[%clk 0:01:46]} 18. Rfd1 {[%clk 0:02:38]}  Nbd5 {[%clk 0:01:45]} 19. Rac1 {[%clk 0:02:37]}  Rb8 {[%clk 0:01:40]} 20. Bg3 {[%clk 0:02:35]}  Rb4 {[%clk 0:01:36]} 21. Na4 {[%clk 0:02:20]}  Qa5 {[%clk 0:01:31]} 22. Nc5 {[%clk 0:02:13]}  Rd8 {[%clk 0:01:29]} 23. Qe2 {[%clk 0:01:57]}  Bxc5 {[%clk 0:01:05]} 24. Rxc5 {[%clk 0:01:56]}  Qb6 {[%clk 0:01:05]} 25. Qc2 {[%clk 0:01:51]}  Rc8 {[%clk 0:01:00]} 26. h3 {[%clk 0:01:47]}  a5 {[%clk 0:00:34]} 27. Rd2 {[%clk 0:01:23]}  a4 {[%clk 0:00:27]} 28. Bxa4 {[%clk 0:01:18]}  Ne4 {[%clk 0:00:24]} 29. Qxe4 {[%clk 0:01:13]}  Qxc5 {[%clk 0:00:23]} 30. Bc2 {[%clk 0:00:52]}  f5 {[%clk 0:00:15]} 31. Qxe6+ {[%clk 0:00:51]} 1-0


[Site "https://www.chess.com"]

[Event "Titled Tuesday Blitz June 28 Early 2022"]
[White "Fernandez Hernandez, Gerardo"]
[Black "Heinemann, Josefine"]
[WhiteFideId "2207400"]
[BlackFideId "12900460"]
[WhiteElo "2229"]
[BlackElo "2300"]
[Result "0-1"]
[Round "07"]
[TimeControl "180+1"]
[Date "2022.06.28"]
[WhiteClock "0:00:02"]
[BlackClock "0:00:34"]

1. e4 {[%clk 0:02:56]}  c6 {[%clk 0:02:56]} 2. d4 {[%clk 0:02:55]}  d5 {[%clk 0:02:54]} 3. e5 {[%clk 0:02:55]}  c5 {[%clk 0:02:48]} 4. dxc5 {[%clk 0:02:53]}  e6 {[%clk 0:02:47]} 5. Be3 {[%clk 0:02:50]}  Nd7 {[%clk 0:02:46]} 6. Bb5 {[%clk 0:02:45]}  Ne7 {[%clk 0:02:41]} 7. c3 {[%clk 0:02:33]}  Nc6 {[%clk 0:02:40]} 8. Nf3 {[%clk 0:02:15]}  Bxc5 {[%clk 0:02:33]} 9. Bd4 {[%clk 0:02:13]}  O-O {[%clk 0:02:26]} 10. O-O {[%clk 0:02:12]}  a6 {[%clk 0:02:24]} 11. Bxc6 {[%clk 0:02:10]}  bxc6 {[%clk 0:02:25]} 12. Nbd2 {[%clk 0:02:03]}  Rb8 {[%clk 0:02:22]} 13. Nb3 {[%clk 0:02:02]}  Bb6 {[%clk 0:02:21]} 14. a4 {[%clk 0:01:52]}  c5 {[%clk 0:02:20]} 15. Be3 {[%clk 0:01:49]}  a5 {[%clk 0:02:19]} 16. Bf4 {[%clk 0:01:36]}  Ba6 {[%clk 0:02:17]} 17. Re1 {[%clk 0:01:35]}  Qc7 {[%clk 0:02:13]} 18. Qd2 {[%clk 0:01:33]}  Ba7 {[%clk 0:02:12]} 19. Nc1 {[%clk 0:01:25]}  Rb7 {[%clk 0:02:02]} 20. h4 {[%clk 0:01:11]}  Rfb8 {[%clk 0:01:58]} 21. b3 {[%clk 0:01:12]}  c4 {[%clk 0:01:53]} 22. bxc4 {[%clk 0:01:09]}  Bxc4 {[%clk 0:01:53]} 23. Nd3 {[%clk 0:01:01]}  Nc5 {[%clk 0:01:42]} 24. Nxc5 {[%clk 0:00:45]}  Bxc5 {[%clk 0:01:41]} 25. Bg5 {[%clk 0:00:28]}  Rb2 {[%clk 0:01:36]} 26. Qf4 {[%clk 0:00:28]}  Bxf2+ {[%clk 0:01:33]} 27. Kh1 {[%clk 0:00:21]}  Bxe1 {[%clk 0:01:33]} 28. Rxe1 {[%clk 0:00:22]}  Rb1 {[%clk 0:01:31]} 29. Rxb1 {[%clk 0:00:22]}  Rxb1+ {[%clk 0:01:32]} 30. Kh2 {[%clk 0:00:22]}  h6 {[%clk 0:01:22]} 31. Bxh6 {[%clk 0:00:20]}  gxh6 {[%clk 0:01:22]} 32. Qxh6 {[%clk 0:00:20]}  Bd3 {[%clk 0:01:21]} 33. Qg5+ {[%clk 0:00:11]}  Kf8 {[%clk 0:01:17]} 34. Qf6 {[%clk 0:00:10]}  Ke8 {[%clk 0:00:55]} 35. Ng5 {[%clk 0:00:05]}  Qe7 {[%clk 0:00:34]} 36. Qh8+ {[%clk 0:00:02]}  Kd7 {[%clk 0:00:34]} 0-1


[Site "https://www.chess.com"]

[Event "Titled Tuesday Blitz June 28 Early 2022"]
[White "Ferreira, Vitor Hugo Vieira"]
[Black "Sanchez, Robert"]
[WhiteFideId "2119765"]
[BlackFideId "2034360"]
[WhiteElo "2165"]
[BlackElo "2070"]
[Result "0-1"]
[Round "07"]
[TimeControl "180+1"]
[Date "2022.06.28"]
[WhiteClock "0:00:21"]
[BlackClock "0:00:36"]

1. d4 {[%clk 0:03:00]}  d5 {[%clk 0:02:59]} 2. c4 {[%clk 0:03:00]}  e6 {[%clk 0:02:59]} 3. Nc3 {[%clk 0:02:59]}  Be7 {[%clk 0:03:00]} 4. Bf4 {[%clk 0:02:55]}  Nf6 {[%clk 0:03:00]} 5. e3 {[%clk 0:02:55]}  O-O {[%clk 0:03:00]} 6. h3 {[%clk 0:02:56]}  c6 {[%clk 0:03:01]} 7. Nf3 {[%clk 0:02:56]}  Nbd7 {[%clk 0:03:01]} 8. Bd3 {[%clk 0:02:54]}  b6 {[%clk 0:03:02]} 9. O-O {[%clk 0:02:54]}  Bb7 {[%clk 0:03:02]} 10. Re1 {[%clk 0:02:54]}  c5 {[%clk 0:03:01]} 11. cxd5 {[%clk 0:02:47]}  Nxd5 {[%clk 0:03:01]} 12. Nxd5 {[%clk 0:02:47]}  Bxd5 {[%clk 0:03:01]} 13. a3 {[%clk 0:02:42]}  Bb7 {[%clk 0:02:59]} 14. Qe2 {[%clk 0:02:30]}  cxd4 {[%clk 0:02:52]} 15. exd4 {[%clk 0:02:26]}  Nf6 {[%clk 0:02:49]} 16. Rad1 {[%clk 0:02:26]}  Qd5 {[%clk 0:02:39]} 17. Bc4 {[%clk 0:02:21]}  Qf5 {[%clk 0:02:36]} 18. Be5 {[%clk 0:02:17]}  Rac8 {[%clk 0:02:20]} 19. Bd3 {[%clk 0:02:04]}  Bxf3 {[%clk 0:02:09]} 20. Qxf3 {[%clk 0:01:39]}  Qxf3 {[%clk 0:02:08]} 21. gxf3 {[%clk 0:01:39]}  Rfd8 {[%clk 0:02:00]} 22. Re2 {[%clk 0:01:31]}  Nd5 {[%clk 0:01:57]} 23. Ba6 {[%clk 0:01:28]}  Rc6 {[%clk 0:01:42]} 24. Bb5 {[%clk 0:01:19]}  Rcc8 {[%clk 0:01:42]} 25. Ba6 {[%clk 0:00:55]}  Rc6 {[%clk 0:01:40]} 26. Bd3 {[%clk 0:00:55]}  Bd6 {[%clk 0:01:32]} 27. Be4 {[%clk 0:00:55]}  Bxe5 {[%clk 0:01:31]} 28. dxe5 {[%clk 0:00:55]}  Kf8 {[%clk 0:01:15]} 29. Red2 {[%clk 0:00:54]}  Rc5 {[%clk 0:01:07]} 30. b4 {[%clk 0:00:53]}  Rc3 {[%clk 0:01:07]} 31. Rd3 {[%clk 0:00:49]}  Rxd3 {[%clk 0:01:08]} 32. Rxd3 {[%clk 0:00:49]}  Ke7 {[%clk 0:01:05]} 33. Bxd5 {[%clk 0:00:41]}  Rxd5 {[%clk 0:00:58]} 34. Rxd5 {[%clk 0:00:38]}  exd5 {[%clk 0:00:59]} 35. f4 {[%clk 0:00:37]}  Ke6 {[%clk 0:00:59]} 36. Kg2 {[%clk 0:00:37]}  Kf5 {[%clk 0:00:56]} 37. Kf3 {[%clk 0:00:37]}  d4 {[%clk 0:00:53]} 38. b5 {[%clk 0:00:37]}  h6 {[%clk 0:00:46]} 39. a4 {[%clk 0:00:35]}  g6 {[%clk 0:00:43]} 40. h4 {[%clk 0:00:30]}  h5 {[%clk 0:00:43]} 41. Ke2 {[%clk 0:00:20]}  Kxf4 {[%clk 0:00:37]} 42. Kd3 {[%clk 0:00:21]}  Kxe5 {[%clk 0:00:37]} 43. f4+ {[%clk 0:00:20]}  Kd5 {[%clk 0:00:37]} 44. f5 {[%clk 0:00:21]}  gxf5 {[%clk 0:00:36]} 0-1


[Site "https://www.chess.com"]

[Event "Titled Tuesday Blitz June 28 Early 2022"]
[White "Flynn, Jacob"]
[Black "Ianov, Viktor"]
[WhiteFideId "2509393"]
[BlackFideId "14102730"]
[WhiteElo "1896"]
[BlackElo "2152"]
[Result "0-1"]
[Round "07"]
[TimeControl "180+1"]
[Date "2022.06.28"]
[WhiteClock "0:00:57"]
[BlackClock "0:01:22"]

1. d4 {[%clk 0:03:00]}  d6 {[%clk 0:02:59]} 2. Nf3 {[%clk 0:03:00]}  g6 {[%clk 0:02:59]} 3. c4 {[%clk 0:03:00]}  Bg7 {[%clk 0:02:59]} 4. g3 {[%clk 0:03:00]}  Nf6 {[%clk 0:02:58]} 5. Bg2 {[%clk 0:03:01]}  O-O {[%clk 0:02:58]} 6. O-O {[%clk 0:03:02]}  c6 {[%clk 0:02:59]} 7. Nc3 {[%clk 0:03:01]}  Bf5 {[%clk 0:02:59]} 8. Nh4 {[%clk 0:02:48]}  Be6 {[%clk 0:02:57]} 9. d5 {[%clk 0:02:48]}  cxd5 {[%clk 0:02:57]} 10. cxd5 {[%clk 0:02:48]}  Bd7 {[%clk 0:02:57]} 11. Qb3 {[%clk 0:02:44]}  Qc8 {[%clk 0:02:56]} 12. Re1 {[%clk 0:02:34]}  Na6 {[%clk 0:02:55]} 13. e4 {[%clk 0:02:32]}  Nc5 {[%clk 0:02:55]} 14. Qd1 {[%clk 0:02:30]}  Ng4 {[%clk 0:02:52]} 15. Nf3 {[%clk 0:02:20]}  b5 {[%clk 0:02:47]} 16. Nd4 {[%clk 0:02:17]}  b4 {[%clk 0:02:40]} 17. Nce2 {[%clk 0:02:17]}  Ne5 {[%clk 0:02:39]} 18. Nf4 {[%clk 0:02:11]}  Qb7 {[%clk 0:02:33]} 19. Bf1 {[%clk 0:02:07]}  a5 {[%clk 0:02:30]} 20. Ng2 {[%clk 0:02:00]}  Rfc8 {[%clk 0:02:19]} 21. Nf4 {[%clk 0:01:44]}  a4 {[%clk 0:02:15]} 22. h3 {[%clk 0:01:42]}  b3 {[%clk 0:02:12]} 23. axb3 {[%clk 0:01:39]}  axb3 {[%clk 0:02:11]} 24. Rxa8 {[%clk 0:01:25]}  Rxa8 {[%clk 0:02:11]} 25. Re3 {[%clk 0:01:25]}  Ba4 {[%clk 0:01:51]} 26. Nfe2 {[%clk 0:01:17]}  Nc4 {[%clk 0:01:47]} 27. Nc3 {[%clk 0:01:02]}  Nxe3 {[%clk 0:01:44]} 28. Bxe3 {[%clk 0:01:03]}  Bd7 {[%clk 0:01:41]} 29. Bc4 {[%clk 0:00:58]}  Bxh3 {[%clk 0:01:36]} 30. Nc6 {[%clk 0:00:57]}  Bxc3 {[%clk 0:01:22]} 31. bxc3 {[%clk 0:00:57]}  b2 {[%clk 0:01:22]} 0-1


[Site "https://www.chess.com"]